[Event "*** Titled Tuesday Blitz"]
[Site "Chess.com"]
[Date "2018.04.03"]
[Round "5"]
[White "TrimitziosP7"]
[Black "Fighterman91"]
[Result "0-1"]
[WhiteElo "2605"]
[BlackElo "2572"]
[TimeControl "180+2"]
[EndTime "14:06:27 PDT"]
[Termination "Fighterman91 won by resignation"]

1. Nf3 {[%clk 0:03:01.9]} 1... Nf6 {[%clk 0:03:00.7]} 2. c4 {[%clk 0:03:01.2]}
2... g6 {[%clk 0:03:00.1]} 3. b3 {[%clk 0:03:02.4]} 3... Bg7 {[%clk 0:03:00.6]}
4. Bb2 {[%clk 0:03:04]} 4... O-O {[%clk 0:03:02.5]} 5. d4 {[%clk 0:03:04.7]}
5... c6 {[%clk 0:02:56.6]} 6. e3 {[%clk 0:03:05.6]} 6... d5 {[%clk 0:02:57.6]}
7. Nbd2 {[%clk 0:03:07.1]} 7... Bf5 {[%clk 0:02:58.5]} 8. Be2 {[%clk 0:03:08.1]}
8... a5 {[%clk 0:02:59.5]} 9. O-O {[%clk 0:03:08.1]} 9... Nbd7 {[%clk
0:02:59.1]} 10. Bc3 {[%clk 0:03:09]} 10... Ne4 {[%clk 0:02:59.8]} 11. Nxe4
{[%clk 0:03:10]} 11... Bxe4 {[%clk 0:03:01.7]} 12. Bd3 {[%clk 0:03:10.7]} 12...
Bxf3 {[%clk 0:02:59.5]} 13. Qxf3 {[%clk 0:03:11]} 13... e6 {[%clk 0:03:00.3]}
14. Rfd1 {[%clk 0:03:10.2]} 14... Qe7 {[%clk 0:02:56.6]} 15. e4 {[%clk
0:03:11.1]} 15... dxe4 {[%clk 0:02:56]} 16. Bxe4 {[%clk 0:03:13]} 16... Nf6
{[%clk 0:02:50.6]} 17. Bc2 {[%clk 0:03:13]} 17... Rfd8 {[%clk 0:02:49.8]} 18.
Rd2 {[%clk 0:03:10.8]} 18... Ne8 {[%clk 0:02:20.2]} 19. Bb2 {[%clk 0:03:10.4]}
19... Nc7 {[%clk 0:02:20]} 20. Rad1 {[%clk 0:03:09.4]} 20... Rd7 {[%clk
0:02:10.4]} 21. Qe3 {[%clk 0:03:09.6]} 21... Qd8 {[%clk 0:02:04.7]} 22. Bc3
{[%clk 0:03:08.8]} 22... Qh4 {[%clk 0:01:57.6]} 23. g3 {[%clk 0:03:04.7]} 23...
Qd8 {[%clk 0:01:54.9]} 24. f4 {[%clk 0:03:03.4]} 24... Ne8 {[%clk 0:01:54.6]}
25. Be4 {[%clk 0:03:03.8]} 25... Nd6 {[%clk 0:01:54.7]} 26. Bc2 {[%clk
0:03:03.6]} 26... Qc7 {[%clk 0:01:48.8]} 27. Ba1 {[%clk 0:03:03.5]} 27... Re8
{[%clk 0:01:40.1]} 28. Kg2 {[%clk 0:03:01.8]} 28... Red8 {[%clk 0:01:40.6]} 29.
h4 {[%clk 0:03:00.2]} 29... b5 {[%clk 0:01:36]} 30. Bd3 {[%clk 0:02:56.9]} 30...
Qb7 {[%clk 0:01:30.7]} 31. Kh2 {[%clk 0:02:55.7]} 31... Nf5 {[%clk 0:01:25.6]}
32. Bxf5 {[%clk 0:02:55.7]} 32... gxf5 {[%clk 0:01:26.6]} 33. Bc3 {[%clk
0:02:55.9]} 33... Qa6 {[%clk 0:01:24.3]} 34. Qe2 {[%clk 0:02:54.3]} 34... a4
{[%clk 0:01:20.8]} 35. Kh3 {[%clk 0:02:52.6]} 35... axb3 {[%clk 0:01:20.5]} 36.
axb3 {[%clk 0:02:54.5]} 36... Qa3 {[%clk 0:01:19]} 37. Rd3 {[%clk 0:02:53.1]}
37... Qxb3 {[%clk 0:01:14.9]} 38. Ba5 {[%clk 0:02:50.3]} 38... Qxc4 {[%clk
0:01:15.5]} 39. Bxd8 {[%clk 0:02:51]} 39... Rxd8 {[%clk 0:01:17]} 40. Qd2 {[%clk
0:02:48.7]} 40... Qd5 {[%clk 0:01:05.1]} 41. Qc2 {[%clk 0:02:48.5]} 41... Bf6
{[%clk 0:00:59]} 42. Rc3 {[%clk 0:02:46.7]} 42... Rd6 {[%clk 0:00:48.9]} 43. Qg2
{[%clk 0:02:44.9]} 43... Qxg2+ {[%clk 0:00:33.3]} 44. Kxg2 {[%clk 0:02:46.8]}
44... Bxd4 {[%clk 0:00:34.6]} 45. Rc2 {[%clk 0:02:44.2]} 45... b4 {[%clk
0:00:34.4]} 46. Rc4 {[%clk 0:02:43.1]} 46... c5 {[%clk 0:00:35.4]} 47. Kf3
{[%clk 0:02:44.4]} 47... Ra6 {[%clk 0:00:33.1]} 48. Rd3 {[%clk 0:02:43.1]} 48...
h5 {[%clk 0:00:28.8]} 49. Ke2 {[%clk 0:02:40.9]} 49... Ra2+ {[%clk 0:00:28.8]}
50. Kd1 {[%clk 0:02:41.9]} 50... Rg2 {[%clk 0:00:24.3]} 51. Rf3 {[%clk
0:02:11.6]} 51... Kf8 {[%clk 0:00:23.4]} 52. Rc2 {[%clk 0:02:09.8]} 52... Rxc2
{[%clk 0:00:22.9]} 53. Kxc2 {[%clk 0:02:11.7]} 53... c4 {[%clk 0:00:24.4]} 54.
Rf1 {[%clk 0:02:07.6]} 54... b3+ {[%clk 0:00:25.5]} 55. Kd2 {[%clk 0:02:07.1]}
55... c3+ {[%clk 0:00:26.1]} 56. Kd3 {[%clk 0:02:07.9]} 56... c2 {[%clk
0:00:26.5]} 57. Kd2 {[%clk 0:01:48.1]} 57... Bb2 {[%clk 0:00:27.2]} 58. Rh1
{[%clk 0:01:48.5]} 58... f6 {[%clk 0:00:28.3]} 59. Rf1 {[%clk 0:01:48]} 59...
Ke7 {[%clk 0:00:29.1]} 60. Rh1 {[%clk 0:01:48.9]} 60... e5 {[%clk 0:00:30.4]}
0-1

[Event "*** Titled Tuesday Blitz"]
[Site "Chess.com"]
[Date "2018.04.03"]
[Round "5"]
[White "wonderfultime"]
[Black "LastHeroJr"]
[Result "1-0"]
[WhiteElo "2744"]
[BlackElo "2429"]
[TimeControl "180+2"]
[EndTime "14:06:29 PDT"]
[Termination "wonderfultime won by resignation"]

1. d4 {[%clk 0:03:01.9]} 1... Nf6 {[%clk 0:03:00.1]} 2. c4 {[%clk 0:03:02.5]}
2... e6 {[%clk 0:03:01.3]} 3. Nc3 {[%clk 0:03:03.3]} 3... Bb4 {[%clk 0:03:02.2]}
4. e3 {[%clk 0:03:04.5]} 4... O-O {[%clk 0:03:02]} 5. Ne2 {[%clk 0:03:05.9]}
5... d5 {[%clk 0:03:02.2]} 6. a3 {[%clk 0:03:06.8]} 6... Bd6 {[%clk 0:02:59.4]}
7. Ng3 {[%clk 0:03:05.2]} 7... Re8 {[%clk 0:02:52.9]} 8. Bd3 {[%clk 0:03:05.1]}
8... dxc4 {[%clk 0:02:47.5]} 9. Bxc4 {[%clk 0:03:05.2]} 9... e5 {[%clk
0:02:48.7]} 10. dxe5 {[%clk 0:02:45.1]} 10... Bxe5 {[%clk 0:02:48.9]} 11. O-O
{[%clk 0:02:47]} 11... c6 {[%clk 0:02:40.4]} 12. Qc2 {[%clk 0:02:45.5]} 12...
Qe7 {[%clk 0:02:33.5]} 13. Nce2 {[%clk 0:02:34.6]} 13... Be6 {[%clk 0:02:14.5]}
14. e4 {[%clk 0:02:28]} 14... Nbd7 {[%clk 0:01:56.4]} 15. Bxe6 {[%clk
0:01:34.2]} 15... Qxe6 {[%clk 0:01:58.3]} 16. f4 {[%clk 0:01:35.2]} 16... Bc7
{[%clk 0:01:58.8]} 17. e5 {[%clk 0:01:35.4]} 17... Bb6+ {[%clk 0:01:58.5]} 18.
Kh1 {[%clk 0:01:36.3]} 18... Ng4 {[%clk 0:01:59.6]} 19. h3 {[%clk 0:01:31.5]}
19... Ne3 {[%clk 0:01:00.8]} 20. Bxe3 {[%clk 0:01:32.2]} 20... Bxe3 {[%clk
0:01:02.7]} 21. Rad1 {[%clk 0:01:30.7]} 21... g6 {[%clk 0:00:53.8]} 22. Rd6
{[%clk 0:01:27.3]} 22... Qe7 {[%clk 0:00:54.6]} 23. Qd3 {[%clk 0:01:28.4]} 23...
Nc5 {[%clk 0:00:50]} 24. Qc3 {[%clk 0:01:18.6]} 24... Na4 {[%clk 0:00:42]} 25.
Qc2 {[%clk 0:01:07.7]} 25... Nb6 {[%clk 0:00:28]} 26. Rf3 {[%clk 0:01:01.1]}
26... Nd5 {[%clk 0:00:27.2]} 27. Rxd5 {[%clk 0:01:02]} 27... cxd5 {[%clk
0:00:28.2]} 28. Rxe3 {[%clk 0:01:03.9]} 28... d4 {[%clk 0:00:28.7]} 29. Nxd4
{[%clk 0:01:03.9]} 29... Red8 {[%clk 0:00:29.9]} 30. Nf3 {[%clk 0:00:59.2]}
30... Rac8 {[%clk 0:00:29.4]} 31. Rc3 {[%clk 0:01:00.4]} 31... Rxc3 {[%clk
0:00:27.3]} 32. Qxc3 {[%clk 0:01:02.3]} 32... Qd7 {[%clk 0:00:28.5]} 33. Kh2
{[%clk 0:01:02.9]} 33... Rc8 {[%clk 0:00:29.3]} 34. Qe3 {[%clk 0:01:03.4]} 34...
Rc2 {[%clk 0:00:27.1]} 35. f5 {[%clk 0:01:04.2]} 35... Qd5 {[%clk 0:00:23.2]}
36. f6 {[%clk 0:00:56]} 36... Kf8 {[%clk 0:00:20.9]} 37. b4 {[%clk 0:00:42.6]}
37... b6 {[%clk 0:00:21.2]} 38. e6 {[%clk 0:00:37.4]} 38... fxe6 {[%clk
0:00:16.7]} 39. Qh6+ {[%clk 0:00:38.2]} 39... Ke8 {[%clk 0:00:17.5]} 40. Qg7
{[%clk 0:00:38.2]} 40... Rxg2+ {[%clk 0:00:03.7]} 41. Kxg2 {[%clk 0:00:39]}
41... Qa2+ {[%clk 0:00:05.3]} 42. Kg1 {[%clk 0:00:37.9]} 42... Qa1+ {[%clk
0:00:06.3]} 43. Nf1 {[%clk 0:00:39.2]} 1-0

[Event "*** Titled Tuesday Blitz"]
[Site "Chess.com"]
[Date "2018.04.03"]
[Round "5"]
[White "TomPolgar"]
[Black "nickmatta"]
[Result "1-0"]
[WhiteElo "2317"]
[BlackElo "2301"]
[TimeControl "180+2"]
[EndTime "14:06:33 PDT"]
[Termination "TomPolgar won by resignation"]

1. e4 {[%clk 0:03:01.4]} 1... e5 {[%clk 0:02:55.2]} 2. Nf3 {[%clk 0:02:56.8]}
2... Nc6 {[%clk 0:02:56.2]} 3. Nc3 {[%clk 0:02:57.3]} 3... Nf6 {[%clk
0:02:57.3]} 4. d4 {[%clk 0:02:57.9]} 4... exd4 {[%clk 0:02:59.2]} 5. Nxd4 {[%clk
0:02:58.1]} 5... Bb4 {[%clk 0:03:00.7]} 6. Nxc6 {[%clk 0:02:57.2]} 6... bxc6
{[%clk 0:03:02.6]} 7. Bd3 {[%clk 0:02:57]} 7... d5 {[%clk 0:03:04]} 8. exd5
{[%clk 0:02:57.1]} 8... cxd5 {[%clk 0:03:05.9]} 9. O-O {[%clk 0:02:57.7]} 9...
O-O {[%clk 0:03:06.8]} 10. h3 {[%clk 0:02:57.8]} 10... h6 {[%clk 0:02:55.7]} 11.
Qf3 {[%clk 0:02:54.7]} 11... Bd6 {[%clk 0:02:50.9]} 12. Bf4 {[%clk 0:02:48]}
12... Rb8 {[%clk 0:02:34.2]} 13. b3 {[%clk 0:02:45.1]} 13... Bb7 {[%clk
0:02:12.3]} 14. Bxd6 {[%clk 0:01:59.6]} 14... Qxd6 {[%clk 0:02:13.1]} 15. Nb5
{[%clk 0:01:54.9]} 15... Qb6 {[%clk 0:02:05.9]} 16. Qf4 {[%clk 0:01:42.1]} 16...
c5 {[%clk 0:01:46.2]} 17. Rad1 {[%clk 0:01:04.1]} 17... Rbd8 {[%clk 0:01:23.7]}
18. Rfe1 {[%clk 0:00:57.5]} 18... d4 {[%clk 0:01:08.1]} 19. Qc7 {[%clk
0:00:36.2]} 19... Nd5 {[%clk 0:00:57.8]} 20. Qxb6 {[%clk 0:00:31.9]} 20... axb6
{[%clk 0:00:59.7]} 21. Be4 {[%clk 0:00:25]} 21... Ba8 {[%clk 0:00:27.1]} 22. c4
{[%clk 0:00:14.4]} 22... Nb4 {[%clk 0:00:19.8]} 23. a3 {[%clk 0:00:10.4]} 23...
Bxe4 {[%clk 0:00:08.4]} 24. Rxe4 {[%clk 0:00:11.5]} 24... Nc2 {[%clk 0:00:09.8]}
25. Rd2 {[%clk 0:00:10.4]} 25... Na1 {[%clk 0:00:05.1]} 26. Rd3 {[%clk
0:00:07.4]} 26... Rfe8 {[%clk 0:00:05.3]} 27. Rxe8+ {[%clk 0:00:06.9]} 27...
Rxe8 {[%clk 0:00:07.2]} 28. Kf1 {[%clk 0:00:08.2]} 28... Nc2 {[%clk 0:00:06.9]}
29. Rd1 {[%clk 0:00:09]} 29... d3 {[%clk 0:00:06.4]} 30. Nc3 {[%clk 0:00:08.4]}
30... Rd8 {[%clk 0:00:04.2]} 31. Nd5 {[%clk 0:00:08.5]} 31... Nxa3 {[%clk
0:00:04.7]} 32. Rxd3 {[%clk 0:00:08.8]} 32... Kf8 {[%clk 0:00:06.3]} 33. Ke2
{[%clk 0:00:09.1]} 33... Nc2 {[%clk 0:00:04.3]} 34. Nxb6 {[%clk 0:00:09]} 34...
Nd4+ {[%clk 0:00:05.9]} 35. Kf1 {[%clk 0:00:08.3]} 35... Rb8 {[%clk 0:00:07]}
36. Nd7+ {[%clk 0:00:08.7]} 36... Ke7 {[%clk 0:00:08.7]} 37. Nxb8 {[%clk
0:00:10.2]} 37... Ke6 {[%clk 0:00:09.2]} 38. Na6 {[%clk 0:00:10.8]} 38... Ke5
{[%clk 0:00:10.7]} 39. Nxc5 {[%clk 0:00:11.7]} 39... Nc2 {[%clk 0:00:12]} 40.
Rd7 {[%clk 0:00:10.2]} 40... Nb4 {[%clk 0:00:13.9]} 41. Rxf7 {[%clk 0:00:11.2]}
41... g6 {[%clk 0:00:15.3]} 42. Rh7 {[%clk 0:00:12.1]} 42... Kf6 {[%clk
0:00:17.2]} 43. Rxh6 {[%clk 0:00:13]} 43... Kg5 {[%clk 0:00:19.1]} 44. Rh8
{[%clk 0:00:14.2]} 44... Nc2 {[%clk 0:00:20.5]} 1-0

[Event "*** Titled Tuesday Blitz"]
[Site "Chess.com"]
[Date "2018.04.03"]
[Round "5"]
[White "KNVB"]
[Black "Zaven_ChessMood"]
[Result "0-1"]
[WhiteElo "2597"]
[BlackElo "2793"]
[TimeControl "180+2"]
[EndTime "14:06:35 PDT"]
[Termination "Zaven_ChessMood won by resignation"]

1. d4 {[%clk 0:03:01.9]} 1... Nf6 {[%clk 0:03:00.4]} 2. c4 {[%clk 0:03:00.4]}
2... c5 {[%clk 0:03:01.5]} 3. d5 {[%clk 0:03:01.2]} 3... b5 {[%clk 0:03:02.5]}
4. Qc2 {[%clk 0:02:49.4]} 4... bxc4 {[%clk 0:03:02.7]} 5. e4 {[%clk 0:02:47.9]}
5... d6 {[%clk 0:03:04.1]} 6. Bxc4 {[%clk 0:02:44.8]} 6... g6 {[%clk 0:03:05]}
7. Nf3 {[%clk 0:02:44.4]} 7... Nbd7 {[%clk 0:03:05.4]} 8. O-O {[%clk 0:02:37.1]}
8... Bg7 {[%clk 0:03:06.4]} 9. Re1 {[%clk 0:02:29.4]} 9... O-O {[%clk
0:03:07.1]} 10. h3 {[%clk 0:02:28.4]} 10... a5 {[%clk 0:03:07]} 11. Nc3 {[%clk
0:02:25.3]} 11... Nb6 {[%clk 0:03:05.8]} 12. Bb5 {[%clk 0:02:24.4]} 12... Bd7
{[%clk 0:03:03.6]} 13. a4 {[%clk 0:02:21.8]} 13... Ne8 {[%clk 0:03:03.4]} 14.
Bg5 {[%clk 0:02:08.3]} 14... Nc7 {[%clk 0:03:02.3]} 15. Bf1 {[%clk 0:02:04]}
15... h6 {[%clk 0:02:57.7]} 16. Bh4 {[%clk 0:01:56.3]} 16... Na6 {[%clk
0:02:55.9]} 17. e5 {[%clk 0:01:52.3]} 17... Nb4 {[%clk 0:02:53.1]} 18. Qd2
{[%clk 0:01:53.4]} 18... g5 {[%clk 0:02:48.8]} 19. Bg3 {[%clk 0:01:14.3]} 19...
Bf5 {[%clk 0:02:48.7]} 20. exd6 {[%clk 0:01:10.6]} 20... exd6 {[%clk 0:02:48.6]}
21. Nb5 {[%clk 0:01:11.9]} 21... Nc8 {[%clk 0:02:45.3]} 22. Rac1 {[%clk
0:00:59.6]} 22... Bg6 {[%clk 0:02:39.5]} 23. Bc4 {[%clk 0:00:57.3]} 23... Ra6
{[%clk 0:02:34.1]} 24. b3 {[%clk 0:00:54.4]} 24... Rb6 {[%clk 0:02:28]} 25. Qe2
{[%clk 0:00:33.7]} 25... Rb7 {[%clk 0:02:21.2]} 26. Nd2 {[%clk 0:00:17.7]} 26...
Re7 {[%clk 0:02:16.3]} 27. Qf1 {[%clk 0:00:16.4]} 27... Rfe8 {[%clk 0:02:15.5]}
28. Rxe7 {[%clk 0:00:16.4]} 28... Qxe7 {[%clk 0:02:16.6]} 29. Nf3 {[%clk
0:00:10.3]} 29... Qd7 {[%clk 0:02:05.8]} 30. Re1 {[%clk 0:00:09.7]} 30... Rxe1
{[%clk 0:01:59.7]} 31. Nxe1 {[%clk 0:00:08.8]} 31... f5 {[%clk 0:01:53.9]} 32.
f4 {[%clk 0:00:09]} 32... Bf7 {[%clk 0:01:51.8]} 33. Qf3 {[%clk 0:00:03.1]}
33... g4 {[%clk 0:01:49.4]} 34. hxg4 {[%clk 0:00:03.7]} 34... fxg4 {[%clk
0:01:50.9]} 35. Qd1 {[%clk 0:00:05.3]} 35... Ne7 {[%clk 0:01:49.3]} 36. Nd3
{[%clk 0:00:05.5]} 36... Nbxd5 {[%clk 0:01:43.3]} 37. f5 {[%clk 0:00:04.9]}
37... Nxf5 {[%clk 0:01:41.8]} 38. Qxg4 {[%clk 0:00:04.3]} 38... Nde3 {[%clk
0:01:41.8]} 39. Bxf7+ {[%clk 0:00:04.3]} 39... Qxf7 {[%clk 0:01:43.4]} 40. Qf3
{[%clk 0:00:04.5]} 40... Qxb3 {[%clk 0:01:41.3]} 41. Nf4 {[%clk 0:00:03]} 41...
Qb1+ {[%clk 0:01:39.4]} 42. Kh2 {[%clk 0:00:04]} 42... Nf1+ {[%clk 0:01:38.3]}
43. Kh3 {[%clk 0:00:05.3]} 43... N1xg3 {[%clk 0:01:34.7]} 44. Qd5+ {[%clk
0:00:05.2]} 44... Kh7 {[%clk 0:01:34.9]} 45. Qf7 {[%clk 0:00:05.7]} 45... Qh1+
{[%clk 0:01:33.3]} 46. Kg4 {[%clk 0:00:06.8]} 46... Qh4+ {[%clk 0:01:28.4]} 47.
Kf3 {[%clk 0:00:07.7]} 47... Qf6 {[%clk 0:01:25.7]} 48. Qd5 {[%clk 0:00:03.7]}
48... Qe5 {[%clk 0:01:23.7]} 49. Qd3 {[%clk 0:00:03.9]} 49... c4 {[%clk
0:01:17]} 50. Qd2 {[%clk 0:00:03.4]} 50... h5 {[%clk 0:01:14]} 51. Nxh5 {[%clk
0:00:02.7]} 51... Qe4+ {[%clk 0:01:14.4]} 52. Kf2 {[%clk 0:00:03.4]} 52... Nxh5
{[%clk 0:01:13.2]} 0-1

[Event "*** Titled Tuesday Blitz"]
[Site "Chess.com"]
[Date "2018.04.03"]
[Round "5"]
[White "Cecile-Haussernot"]
[Black "comedy_of_errors"]
[Result "0-1"]
[WhiteElo "2304"]
[BlackElo "2425"]
[TimeControl "180+2"]
[EndTime "14:06:42 PDT"]
[Termination "comedy_of_errors won by resignation"]

1. e4 {[%clk 0:03:01.9]} 1... e6 {[%clk 0:02:59.9]} 2. d4 {[%clk 0:03:02.5]}
2... d5 {[%clk 0:03:01.8]} 3. Nc3 {[%clk 0:03:03]} 3... dxe4 {[%clk 0:03:02.9]}
4. Nxe4 {[%clk 0:03:03.4]} 4... Bd7 {[%clk 0:03:01.8]} 5. Bd3 {[%clk 0:02:56.2]}
5... Bc6 {[%clk 0:03:02.7]} 6. Nf3 {[%clk 0:02:56.8]} 6... Nd7 {[%clk 0:03:04]}
7. O-O {[%clk 0:02:57.6]} 7... Ngf6 {[%clk 0:03:05.5]} 8. Ng3 {[%clk 0:02:55.9]}
8... g6 {[%clk 0:03:06.3]} 9. Ne5 {[%clk 0:02:48.4]} 9... Nxe5 {[%clk
0:03:04.7]} 10. dxe5 {[%clk 0:02:49.3]} 10... Qd5 {[%clk 0:02:54.3]} 11. f3
{[%clk 0:02:44.1]} 11... Qxe5 {[%clk 0:02:46.5]} 12. Re1 {[%clk 0:02:44.1]}
12... Qd5 {[%clk 0:02:40.7]} 13. Qe2 {[%clk 0:02:39.3]} 13... Bg7 {[%clk
0:02:39.3]} 14. Bd2 {[%clk 0:02:31.8]} 14... O-O {[%clk 0:02:38]} 15. Bc3 {[%clk
0:02:32.1]} 15... Rad8 {[%clk 0:02:33]} 16. Kh1 {[%clk 0:02:19]} 16... Nh5
{[%clk 0:02:22.4]} 17. Ne4 {[%clk 0:02:11.1]} 17... Nf4 {[%clk 0:01:57.5]} 18.
Qe3 {[%clk 0:01:11.5]} 18... Nxd3 {[%clk 0:01:56.6]} 19. Bxg7 {[%clk 0:01:08.5]}
19... Kxg7 {[%clk 0:01:56.2]} 20. cxd3 {[%clk 0:01:08.6]} 20... Qxd3 {[%clk
0:01:54.2]} 21. Qf4 {[%clk 0:01:05.2]} 21... Bxe4 {[%clk 0:01:53.3]} 22. fxe4
{[%clk 0:01:06.2]} 22... Qd6 {[%clk 0:01:34.6]} 23. e5 {[%clk 0:01:01.8]} 23...
Qe7 {[%clk 0:01:35.7]} 24. Re3 {[%clk 0:00:54.4]} 24... f5 {[%clk 0:01:32.9]}
25. Rh3 {[%clk 0:00:54]} 25... g5 {[%clk 0:01:19.1]} 26. Rg3 {[%clk 0:00:53.7]}
26... h6 {[%clk 0:01:19.3]} 27. h4 {[%clk 0:00:51.6]} 27... g4 {[%clk
0:01:20.8]} 28. Rc1 {[%clk 0:00:44.1]} 28... c6 {[%clk 0:01:16]} 29. Ra3 {[%clk
0:00:40.7]} 29... Qxh4+ {[%clk 0:01:15.5]} 30. Kg1 {[%clk 0:00:41.4]} 30... a6
{[%clk 0:01:13.1]} 31. Rb3 {[%clk 0:00:41.7]} 31... Rf7 {[%clk 0:01:14.4]} 32.
g3 {[%clk 0:00:36.2]} 32... Qg5 {[%clk 0:01:15.3]} 33. Qc4 {[%clk 0:00:37.5]}
33... Rd5 {[%clk 0:01:13.5]} 34. Re1 {[%clk 0:00:35.8]} 34... h5 {[%clk
0:01:12.7]} 35. Rd3 {[%clk 0:00:33.5]} 35... f4 {[%clk 0:01:11.1]} 36. gxf4
{[%clk 0:00:23.2]} 36... Qxf4 {[%clk 0:01:08.1]} 37. Qxf4 {[%clk 0:00:21.8]}
37... Rxf4 {[%clk 0:01:10]} 38. Rb3 {[%clk 0:00:23.6]} 38... b5 {[%clk
0:01:10.1]} 39. Rc3 {[%clk 0:00:24.5]} 39... c5 {[%clk 0:01:11.3]} 40. Rec1
{[%clk 0:00:25]} 40... c4 {[%clk 0:01:12]} 41. Re3 {[%clk 0:00:26.6]} 41... h4
{[%clk 0:01:11.6]} 42. b3 {[%clk 0:00:28]} 42... g3 {[%clk 0:01:12.4]} 43. bxc4
{[%clk 0:00:28.7]} 43... bxc4 {[%clk 0:01:14.3]} 44. Ra3 {[%clk 0:00:30]} 44...
Rxe5 {[%clk 0:01:14.4]} 45. Rxa6 {[%clk 0:00:31.4]} 45... h3 {[%clk 0:01:13.9]}
46. Ra7+ {[%clk 0:00:32.4]} 46... Kf6 {[%clk 0:01:14.7]} 47. Ra8 {[%clk
0:00:34]} 47... Re2 {[%clk 0:01:07.1]} 48. Rf8+ {[%clk 0:00:34.6]} 48... Ke5
{[%clk 0:01:08.5]} 49. Rxf4 {[%clk 0:00:34.4]} 49... Kxf4 {[%clk 0:01:10.4]} 50.
Rxc4+ {[%clk 0:00:35.8]} 50... Kf3 {[%clk 0:01:12]} 51. Rc3+ {[%clk 0:00:36.8]}
51... Re3 {[%clk 0:01:13.5]} 52. Rc1 {[%clk 0:00:37.4]} 52... Ra3 {[%clk
0:01:04.4]} 53. Rf1+ {[%clk 0:00:36]} 53... Kg4 {[%clk 0:01:05.5]} 54. Rf6
{[%clk 0:00:34.2]} 54... Rxa2 {[%clk 0:01:04]} 55. Rg6+ {[%clk 0:00:34.5]} 55...
Kf4 {[%clk 0:01:03.6]} 56. Rf6+ {[%clk 0:00:35.6]} 56... Kg5 {[%clk 0:01:05.1]}
0-1

[Event "*** Titled Tuesday Blitz"]
[Site "Chess.com"]
[Date "2018.04.03"]
[Round "5"]
[White "murmah2003"]
[Black "Zufi1811"]
[Result "0-1"]
[WhiteElo "2441"]
[BlackElo "2461"]
[TimeControl "180+2"]
[EndTime "14:06:43 PDT"]
[Termination "Zufi1811 won by resignation"]

1. d4 {[%clk 0:03:01.9]} 1... Nf6 {[%clk 0:02:59.8]} 2. c4 {[%clk 0:03:02.5]}
2... g6 {[%clk 0:03:00.5]} 3. Nc3 {[%clk 0:03:02.7]} 3... Bg7 {[%clk 0:03:01.9]}
4. e4 {[%clk 0:03:03.5]} 4... d6 {[%clk 0:03:02.9]} 5. Nf3 {[%clk 0:03:04.8]}
5... O-O {[%clk 0:03:04.2]} 6. Be2 {[%clk 0:03:05.9]} 6... Nbd7 {[%clk
0:03:04.8]} 7. O-O {[%clk 0:03:05]} 7... e5 {[%clk 0:03:06]} 8. Be3 {[%clk
0:03:06.1]} 8... Re8 {[%clk 0:03:06.1]} 9. d5 {[%clk 0:03:00.4]} 9... Nh5 {[%clk
0:03:07.4]} 10. Ne1 {[%clk 0:02:54.4]} 10... Nf4 {[%clk 0:03:05.1]} 11. Nd3
{[%clk 0:02:55.6]} 11... Nxe2+ {[%clk 0:03:05]} 12. Qxe2 {[%clk 0:02:56.6]}
12... Rf8 {[%clk 0:03:04.2]} 13. c5 {[%clk 0:02:56.7]} 13... f5 {[%clk
0:02:55.6]} 14. f3 {[%clk 0:02:57.1]} 14... a6 {[%clk 0:02:55.5]} 15. Bf2 {[%clk
0:02:33.8]} 15... Nf6 {[%clk 0:02:52.7]} 16. cxd6 {[%clk 0:02:34.1]} 16... cxd6
{[%clk 0:02:53.6]} 17. Na4 {[%clk 0:02:31]} 17... fxe4 {[%clk 0:02:47.7]} 18.
fxe4 {[%clk 0:02:32.9]} 18... Bg4 {[%clk 0:02:40.4]} 19. Qe3 {[%clk 0:02:27.3]}
19... Nh5 {[%clk 0:02:12.5]} 20. h3 {[%clk 0:02:19.2]} 20... Bd7 {[%clk
0:02:12.9]} 21. Nb6 {[%clk 0:02:19.8]} 21... Rb8 {[%clk 0:02:13.3]} 22. Nxd7
{[%clk 0:02:19.8]} 22... Qxd7 {[%clk 0:02:15.2]} 23. Bh4 {[%clk 0:01:26.6]}
23... Rbc8 {[%clk 0:01:46.5]} 24. Rxf8+ {[%clk 0:01:16.6]} 24... Rxf8 {[%clk
0:01:44.4]} 25. Rf1 {[%clk 0:01:16.6]} 25... Rxf1+ {[%clk 0:01:29.8]} 26. Kxf1
{[%clk 0:01:18.5]} 26... Qa4 {[%clk 0:01:30.6]} 27. a3 {[%clk 0:00:47.5]} 27...
Qb3 {[%clk 0:01:28.1]} 28. Bf2 {[%clk 0:00:28.3]} 28... Bh6 {[%clk 0:01:21.7]}
29. Qf3 {[%clk 0:00:19.4]} 29... Qc2 {[%clk 0:01:10.3]} 30. g3 {[%clk
0:00:19.7]} 30... Kg7 {[%clk 0:01:09.6]} 31. Qe2 {[%clk 0:00:18.3]} 31... Qc8
{[%clk 0:01:03.7]} 32. Kg2 {[%clk 0:00:18.7]} 32... Nf6 {[%clk 0:01:04]} 33. Be1
{[%clk 0:00:11]} 33... Qc4 {[%clk 0:01:03.6]} 34. Kf3 {[%clk 0:00:12.2]} 34...
Kg8 {[%clk 0:00:41.6]} 35. Bc3 {[%clk 0:00:12.8]} 35... Bf8 {[%clk 0:00:41.4]}
36. Nf2 {[%clk 0:00:11.5]} 36... Qc8 {[%clk 0:00:40.4]} 37. Kg2 {[%clk
0:00:11.8]} 37... h5 {[%clk 0:00:41]} 38. h4 {[%clk 0:00:10]} 38... Be7 {[%clk
0:00:41.6]} 39. Qf3 {[%clk 0:00:10.7]} 39... Kg7 {[%clk 0:00:40.8]} 40. Qd3
{[%clk 0:00:11.9]} 40... Bd8 {[%clk 0:00:41.4]} 41. Bd2 {[%clk 0:00:13.2]} 41...
Bb6 {[%clk 0:00:42.1]} 42. Be3 {[%clk 0:00:13.1]} 42... Bxe3 {[%clk 0:00:42.1]}
43. Qxe3 {[%clk 0:00:14.9]} 43... Qc2 {[%clk 0:00:42.9]} 44. Qc3 {[%clk
0:00:16.4]} 44... Qxf2+ {[%clk 0:00:43.3]} 45. Kxf2 {[%clk 0:00:17.6]} 45...
Nxe4+ {[%clk 0:00:44.7]} 46. Ke3 {[%clk 0:00:18.3]} 46... Nxc3 {[%clk
0:00:46.6]} 47. bxc3 {[%clk 0:00:19.4]} 47... Kf6 {[%clk 0:00:47.5]} 48. Ke4
{[%clk 0:00:19.3]} 48... b5 {[%clk 0:00:47.5]} 0-1